fUSD/lending_fUSD_20260225
["ID","MTS","AMOUNT","RATE_DAILY","PERIOD"]
[406642152,1772017005456,10000.01,6.607e-05,2]
[406642153,1772017005481,10000.01,6.607e-05,2]
[406642154,1772017005505,10000.01,6.607e-05,2]
[406642155,1772017005529,10000.01,6.607e-05,2]
[406642156,1772017012040,200.0,6.162e-05,2]
[406642157,1772017107192,1600.0,6.091e-05,2]
[406642158,1772017169295,1852.42,6.045e-05,2]
[406642159,1772017296113,1172.555,6.475e-05,2]
[406642160,1772017296145,199.586,6.475e-05,2]
[406642162,1772017485541,8627.869,6.507e-05,2]
[406642163,1772017485567,10000.01,6.507e-05,2]
[406642164,1772017485589,10000.01,6.507e-05,2]
[406642165,1772017485611,10000.01,6.507e-05,2]
[406642166,1772017485636,575221.5707561,6.507e-05,2]
[406642167,1772017485670,1386150.5302439,6.507e-05,2]
[406642168,1772017515586,-1819.47,6.6e-05,2]
[406642169,1772017515617,-207.0,6.6e-05,2]
[406642170,1772017517739,947.07,6.507e-05,2]
[406642171,1772017517760,585.53673339,6.507e-05,2]
[406642172,1772017517789,1517.39326661,6.507e-05,2]
[406642173,1772017532157,-362.45737286,6.602e-05,2]
[406642174,1772017545749,-300.0,6.604e-05,2]
[406642175,1772017545779,-300.0,6.604e-05,2]
[406642176,1772017545808,-300.0,6.604e-05,2]
[406642177,1772017545837,-1200.0,6.604e-05,2]
[406642178,1772017560888,-155.70846789,6.605e-05,2]
[406642179,1772017577032,-300.0,6.605e-05,2]
[406642180,1772017577062,-150.0,6.605e-05,2]
[406642181,1772017577091,-300.0,6.605e-05,2]
[406642182,1772017592178,-225.80904997,6.606e-05,2]
[406642183,1772017592206,-559.47488098,6.606e-05,2]
[406642184,1772017592235,-500.0,6.606e-05,2]
[406642185,1772017592277,-500.0,6.606e-05,2]
[406642186,1772017592308,-500.0,6.606e-05,2]
[406642187,1772017592329,-225.80904997,6.606e-05,2]
[406642188,1772017592349,-274.19095003,6.606e-05,2]
[406642189,1772017592358,-285.28393095,6.606e-05,2]
[406642190,1772017592369,-214.71606905,6.606e-05,2]
[406642191,1772017592378,-285.28393095,6.606e-05,2]
[406642192,1772017592390,-214.71606905,6.606e-05,2]
[406642193,1772017592399,-285.28393095,6.606e-05,2]
[406642194,1772017592433,-214.71606905,6.606e-05,2]
[406642195,1772017592464,-500.0,6.606e-05,2]
[406642196,1772017592496,-500.0,6.606e-05,2]
[406642197,1772017592526,-500.0,6.606e-05,2]
[406642198,1772017592557,-500.0,6.606e-05,2]
[406642199,1772017592588,-70.5778619,6.606e-05,2]
[406642200,1772017592601,-429.4221381,6.606e-05,2]
[406642201,1772017592610,-70.5778619,6.606e-05,2]
[406642202,1772017592621,-429.4221381,6.606e-05,2]
[406642203,1772017592631,-0.02,6.606e-05,2]
[406642204,1772017592676,-499.98,6.606e-05,2]
[406642205,1772017592707,-500.0,6.606e-05,2]
[406642206,1772017592737,-500.0,6.606e-05,2]
[406642207,1772017592767,-500.0,6.606e-05,2]
[406642208,1772017592798,-500.0,6.606e-05,2]
[406642209,1772017592822,-214.71606905,6.606e-05,2]
[406642210,1772017592837,-285.28393095,6.606e-05,2]
[406642211,1772017592847,-214.71606905,6.606e-05,2]
[406642212,1772017592859,-285.28393095,6.606e-05,2]
[406642213,1772017592868,-214.71606905,6.606e-05,2]
[406642214,1772017592880,-285.28393095,6.606e-05,2]
[406642215,1772017592890,-214.71606905,6.606e-05,2]
[406642216,1772017592901,-285.28393095,6.606e-05,2]
[406642217,1772017592911,-214.71606905,6.606e-05,2]
[406642218,1772017592944,-285.28393095,6.606e-05,2]
[406642219,1772017592978,-500.0,6.606e-05,2]
[406642220,1772017593009,-500.0,6.606e-05,2]
[406642221,1772017593045,-500.0,6.606e-05,2]
[406642222,1772017593076,-500.0,6.606e-05,2]
[406642223,1772017593095,-500.0,6.606e-05,2]
[406642224,1772017593134,-500.0,6.606e-05,2]
[406642225,1772017593164,-500.0,6.606e-05,2]
[406642226,1772017593195,-500.0,6.606e-05,2]
[406642227,1772017593226,-500.0,6.606e-05,2]
[406642228,1772017593256,-500.0,6.606e-05,2]
[406642229,1772017593288,-499.98,6.606e-05,2]
[406642230,1772017593299,-0.02,6.606e-05,2]
[406642231,1772017593308,-499.98,6.606e-05,2]
[406642232,1772017593323,-0.02,6.606e-05,2]
[406642233,1772017593332,-499.98,6.606e-05,2]
[406642234,1772017593366,-0.02,6.606e-05,2]
[406642235,1772017593396,-500.0,6.606e-05,2]
[406642236,1772017593428,-500.0,6.606e-05,2]
[406642237,1772017593458,-500.0,6.606e-05,2]
[406642238,1772017593489,-500.0,6.606e-05,2]
[406642239,1772017593518,-499.97,6.606e-05,2]
[406642240,1772017593531,-0.03,6.606e-05,2]
[406642241,1772017593540,-298.73981658,6.606e-05,2]
[406642242,1772017593550,-201.23018342,6.606e-05,2]
[406642243,1772017593560,-298.76981658,6.606e-05,2]
[406642244,1772017593570,-201.23018342,6.606e-05,2]
[406642245,1772017593581,-0.05,6.606e-05,2]
[406642246,1772017593618,-298.71981658,6.606e-05,2]
[406642247,1772017593648,-500.0,6.606e-05,2]
[406642248,1772017593678,-500.0,6.606e-05,2]
[406642249,1772017593708,-500.0,6.606e-05,2]
[406642250,1772017593739,-500.0,6.606e-05,2]
[406642251,1772017593761,-285.28393095,6.606e-05,2]
[406642252,1772017593780,-214.71606905,6.606e-05,2]
[406642253,1772017593789,-285.28393095,6.606e-05,2]
[406642254,1772017593802,-214.71606905,6.606e-05,2]
[406642255,1772017593810,-285.28393095,6.606e-05,2]
[406642256,1772017593846,-214.71606905,6.606e-05,2]
[406642257,1772017593880,-500.0,6.606e-05,2]
[406642258,1772017593912,-500.0,6.606e-05,2]
[406642259,1772017593942,-248.07617933,6.606e-05,2]
[406642260,1772017593976,-500.0,6.606e-05,2]
[406642261,1772017594007,-500.0,6.606e-05,2]
[406642262,1772017594027,-500.0,6.606e-05,2]
[406642263,1772017594038,-500.0,6.606e-05,2]
[406642264,1772017594057,-429.4421381,6.606e-05,2]
[406642265,1772017594067,-70.5578619,6.606e-05,2]
[406642266,1772017594077,-429.4421381,6.606e-05,2]
[406642267,1772017594092,-70.5578619,6.606e-05,2]
[406642268,1772017594102,-429.4421381,6.606e-05,2]
[406642269,1772017594117,-70.5578619,6.606e-05,2]
[406642270,1772017594126,-429.4421381,6.606e-05,2]
[406642271,1772017594141,-70.5578619,6.606e-05,2]
[406642272,1772017594151,-429.4421381,6.606e-05,2]
[406642273,1772017594169,-70.5578619,6.606e-05,2]
[406642274,1772017594178,-429.4421381,6.606e-05,2]
[406642275,1772017594189,-0.01,6.606e-05,2]
[406642276,1772017594208,-0.02,6.606e-05,2]
[406642277,1772017594223,-0.40184356,6.606e-05,2]
[406642278,1772017594232,-499.59815644,6.606e-05,2]
[406642279,1772017594250,-0.40184356,6.606e-05,2]
[406642280,1772017594259,-499.59815644,6.606e-05,2]
[406642281,1772017594276,-0.40184356,6.606e-05,2]
[406642282,1772017594285,-499.59815644,6.606e-05,2]
[406642283,1772017594296,-0.40184356,6.606e-05,2]
[406642284,1772017594306,-499.59815644,6.606e-05,2]
[406642285,1772017594319,-0.40184356,6.606e-05,2]
[406642286,1772017594329,-499.59815644,6.606e-05,2]
[406642287,1772017594353,-0.40184356,6.606e-05,2]
[406642288,1772017594363,-298.31797302,6.606e-05,2]
[406642289,1772017594374,-201.68202698,6.606e-05,2]
[406642290,1772017594384,-298.31797302,6.606e-05,2]
[406642291,1772017594406,-201.68202698,6.606e-05,2]
[406642292,1772017594416,-298.31797302,6.606e-05,2]
[406642293,1772017594428,-265.31350886,6.606e-05,2]
[406642294,1772017594438,-234.68649114,6.606e-05,2]
[406642295,1772017594450,-265.31350886,6.606e-05,2]
[406642296,1772017594459,-234.68649114,6.606e-05,2]
[406642297,1772017594470,-265.31350886,6.606e-05,2]
[406642298,1772017594479,-137.25685798,6.606e-05,2]
[406642299,1772017594497,-214.71606905,6.606e-05,2]
[406642300,1772017594509,-70.29837378,6.606e-05,2]
[406642301,1772017594518,-429.70162622,6.606e-05,2]
[406642302,1772017594541,-70.29837378,6.606e-05,2]
[406642303,1772017594550,-429.70162622,6.606e-05,2]
[406642304,1772017594562,-218.11884383,6.606e-05,2]
[406642305,1772017594571,-29.9573355,6.606e-05,2]
[406642306,1772017594582,-269.68542063,6.606e-05,2]
[406642307,1772017595311,-5000.01,6.697e-05,2]
[406642308,1772017595512,-0.01,6.697e-05,2]
[406642309,1772017595528,-4999.99,6.697e-05,2]
[406642310,1772017595538,-0.01,6.697e-05,2]
[406642311,1772017595609,-5000.01,6.697e-05,2]
[406642312,1772017595776,-0.04,6.697e-05,2]
[406642313,1772017595789,-4999.93,6.697e-05,2]
[406642314,1772017611383,-182.64,6.7e-05,2]
[406642315,1772017611417,-348.21,6.7e-05,2]
[406642316,1772017611437,-182.64,6.7e-05,2]
[406642317,1772017611448,-348.21,6.7e-05,2]
[406642318,1772017611459,-3938.31,6.7e-05,2]
[406642319,1772017611494,-5000.01,6.7e-05,2]
[406642320,1772017611650,-530.82,6.7e-05,2]
[406642321,1772017611669,-530.82,6.7e-05,2]
[406642322,1772017611680,-3938.37,6.7e-05,2]
[406642323,1772017611746,-5000.01,6.7e-05,2]
[406642324,1772017611897,-530.79,6.7e-05,2]
[406642325,1772017611924,-299.99,6.7e-05,2]
[406642326,1772017611989,-530.79,6.7e-05,2]
[406642327,1772017612018,-299.99,6.7e-05,2]
[406642328,1772017612047,-3338.45,6.7e-05,2]
[406642329,1772017612068,-5000.01,6.7e-05,2]
[406642330,1772017612116,-830.75,6.7e-05,2]
[406642331,1772017612145,-150.99,6.7e-05,2]
[406642332,1772017612173,-999.99,6.7e-05,2]
[406642333,1772017612194,-830.75,6.7e-05,2]
[406642334,1772017612206,-150.99,6.7e-05,2]
[406642335,1772017612218,-325.26,6.7e-05,2]
[406642336,1772017612228,-674.73,6.7e-05,2]
[406642337,1772017612254,-1036.55,6.7e-05,2]
[406642338,1772017612288,-1711.3,6.7e-05,2]
[406642339,1772017612303,-1577.41,6.7e-05,2]
[406642340,1772017612313,-1711.3,6.7e-05,2]
[406642341,1772017614451,-2430.01,6.7e-05,2]
[406642342,1772017627045,139.99,6.507e-05,2]
[406642343,1772017627070,5000.01,6.507e-05,2]
[406642344,1772017627094,5000.01,6.507e-05,2]
[406642345,1772017627119,5000.01,6.507e-05,2]
[406642346,1772017627143,5000.01,6.507e-05,2]
[406642347,1772017627166,5000.01,6.507e-05,2]
[406642348,1772017627190,5000.01,6.507e-05,2]
[406642349,1772017627216,5000.01,6.507e-05,2]
[406642350,1772017627240,5000.01,6.507e-05,2]
[406642351,1772017627264,10000.01,6.507e-05,2]
[406642352,1772017627293,613849.4697561,6.507e-05,2]
[406642354,1772017651764,4200.0,0.0001,3]
[406642355,1772017657812,-4995.67901649,6.507e-05,2]
[406642356,1772017657907,-10000.01,6.507e-05,2]
[406642357,1772017658035,-10000.01,6.507e-05,2]
[406642358,1772017658127,-10000.01,6.507e-05,2]
[406642359,1772017658248,-10000.01,6.507e-05,2]
[406642360,1772017658349,-10000.01,6.507e-05,2]
[406642361,1772017658452,-10000.01,6.507e-05,2]
[406642362,1772017658755,-10000.01,6.507e-05,2]
[406642363,1772017660394,1000.0,0.0001,3]
[406642364,1772017660644,1000.0,0.0001,3]
[406642365,1772017660668,-10000.01,6.507e-05,2]
[406642366,1772017660751,-10000.01,6.507e-05,2]
[406642367,1772017660879,1000.0,0.0001,3]
[406642368,1772017660894,-10000.01,6.507e-05,2]
[406642369,1772017661125,1000.0,0.0001,3]
[406642370,1772017661363,1000.0,0.0001,3]
[406642371,1772017661605,1000.0,0.0001,3]
[406642372,1772017661870,1000.0,0.0001,3]
[406642373,1772017662114,1000.0,0.0001,3]
[406642374,1772017662358,1000.0,0.0001,3]
[406642375,1772017662665,1000.0,0.0001,3]
[406642376,1772017662832,1000.0,0.0001,3]
[406642377,1772017663071,1000.0,0.0001,3]
[406642378,1772017663301,1000.0,0.0001,3]
[406642379,1772017663549,1000.0,0.0001,3]
[406642380,1772017663786,1000.0,0.0001,3]
[406642381,1772017663812,-10000.01,6.507e-05,2]
[406642382,1772017664046,282.41,0.0001,3]
[406642383,1772017664064,-10000.01,6.507e-05,2]
[406642384,1772017664119,-10000.01,6.507e-05,2]
[406642385,1772017664264,-10000.01,6.507e-05,2]
[406642386,1772017664386,-10000.01,6.507e-05,2]
[406642387,1772017666783,-10000.01,6.507e-05,2]
[406642388,1772017666908,-10000.01,6.507e-05,2]
[406642389,1772017667027,-10000.01,6.507e-05,2]
[406642390,1772017669916,-10000.01,6.507e-05,2]
[406642391,1772017670065,-10000.01,6.507e-05,2]
[406642392,1772017670243,-10000.01,6.507e-05,2]
[406642393,1772017670403,-10000.01,6.507e-05,2]
[406642394,1772017670589,-10000.01,6.507e-05,2]
[406642395,1772017675127,-5000.01,6.507e-05,2]
[406642396,1772017675394,-5000.01,6.507e-05,2]
[406642397,1772017675717,-5000.01,6.507e-05,2]
[406642398,1772017675744,-5000.01,6.507e-05,2]
[406642399,1772017675772,-5000.01,6.507e-05,2]
[406642400,1772017676010,-5000.01,6.507e-05,2]
[406642401,1772017676128,-5000.01,6.507e-05,2]
[406642402,1772017676238,-5000.01,6.507e-05,2]
[406642403,1772017676342,-5000.01,6.507e-05,2]
[406642404,1772017678040,-5000.01,6.507e-05,2]
[406642405,1772017734490,-10000.01,6.507e-05,2]
[406642406,1772017734719,-10000.01,6.507e-05,2]
[406642407,1772017734791,-10000.01,6.507e-05,2]
[406642408,1772017734893,-10000.01,6.507e-05,2]
[406642409,1772017735025,-10000.01,6.507e-05,2]
[406642410,1772017735143,-10000.01,6.507e-05,2]
[406642411,1772017735247,-10000.01,6.507e-05,2]
[406642412,1772017743525,-300.0,6.506e-05,2]
[406642413,1772017743553,-150.0,6.506e-05,2]
[406642414,1772017743599,-9100.01,6.507e-05,2]
[406642415,1772017743623,-10000.01,6.507e-05,2]
[406642416,1772017743728,-10000.01,6.507e-05,2]
[406642417,1772017743824,-10000.01,6.507e-05,2]
[406642418,1772017743962,-10000.01,6.507e-05,2]
[406642419,1772017744182,-10000.01,6.507e-05,2]
[406642420,1772017744327,-10000.01,6.507e-05,2]
[406642421,1772017749672,-10000.01,6.507e-05,2]
[406642422,1772017749787,-10000.01,6.507e-05,2]
[406642423,1772017755898,-10000.01,6.507e-05,2]
[406642424,1772017756006,-10000.01,6.507e-05,2]
[406642425,1772017759151,-10000.01,6.507e-05,2]
[406642426,1772017759376,-10000.01,6.507e-05,2]
[406642427,1772017759470,-10000.01,6.507e-05,2]
[406642428,1772017759598,-10000.01,6.507e-05,2]
[406642429,1772017759708,-10000.01,6.507e-05,2]
[406642430,1772017759825,-10000.01,6.507e-05,2]
[406642431,1772017759935,-10000.01,6.507e-05,2]
[406642432,1772017760050,-10000.01,6.507e-05,2]
[406642433,1772017761980,-500.0,6.506e-05,2]
[406642434,1772017762019,-500.0,6.506e-05,2]
[406642435,1772017762051,-500.0,6.506e-05,2]
[406642436,1772017762083,-500.0,6.506e-05,2]
[406642437,1772017762120,-500.0,6.506e-05,2]
[406642438,1772017762150,-500.0,6.506e-05,2]
[406642439,1772017762180,-500.0,6.506e-05,2]
[406642440,1772017762209,-500.0,6.506e-05,2]
[406642441,1772017762237,-500.0,6.506e-05,2]
[406642442,1772017762267,-500.0,6.506e-05,2]
[406642443,1772017762349,-500.0,6.506e-05,2]
[406642444,1772017762378,-500.0,6.506e-05,2]
[406642445,1772017762407,-500.0,6.506e-05,2]
[406642446,1772017762438,-500.0,6.506e-05,2]
[406642447,1772017762467,-500.0,6.506e-05,2]
[406642448,1772017762496,-500.0,6.506e-05,2]
[406642449,1772017762525,-488.90596386,6.506e-05,2]
[406642450,1772017762554,-500.0,6.506e-05,2]
[406642451,1772017762583,-500.0,6.506e-05,2]
[406642452,1772017762612,-500.0,6.506e-05,2]
[406642453,1772017762912,-11.10403614,6.506e-05,2]
[406642454,1772017762925,-22.19807228,6.506e-05,2]
[406642456,1772017772031,-466.69789158,6.506e-05,2]
[406642457,1772017772064,-500.0,6.506e-05,2]
[406642458,1772017772095,-500.0,6.506e-05,2]
[406642459,1772017772126,-500.0,6.506e-05,2]
[406642460,1772017772209,-6066.61421684,6.507e-05,2]
[406642461,1772017772222,-10000.01,6.507e-05,2]
[406642462,1772017772271,-10000.01,6.507e-05,2]
[406642463,1772017772392,-10000.01,6.507e-05,2]
[406642464,1772017772532,-10000.01,6.507e-05,2]
[406642465,1772017772649,-10000.01,6.507e-05,2]
[406642466,1772017772753,-10000.01,6.507e-05,2]
[406642467,1772017772940,-10000.01,6.507e-05,2]
[406642468,1772017773042,-10000.01,6.507e-05,2]
[406642469,1772017778092,-10000.01,6.507e-05,2]
[406642470,1772017778205,-10000.01,6.507e-05,2]
[406642471,1772017778324,-10000.01,6.507e-05,2]
[406642472,1772017778464,-10000.01,6.507e-05,2]
[406642473,1772017778563,-10000.01,6.507e-05,2]
[406642474,1772017778651,-10000.01,6.507e-05,2]
[406642475,1772017778802,-10000.01,6.507e-05,2]
[406642476,1772017787258,-10000.01,6.507e-05,2]
[406642477,1772017787549,-10000.01,6.507e-05,2]
[406642478,1772017787795,-10000.01,6.507e-05,2]
[406642479,1772017788033,-10000.01,6.507e-05,2]
[406642480,1772017788273,-10000.01,6.507e-05,2]
[406642481,1772017788517,-10000.01,6.507e-05,2]
[406642482,1772017788732,-10000.01,6.507e-05,2]
[406642498,1772017831335,-397.84647269,6.506e-05,2]
[406642499,1772017831347,-297.04785907,6.506e-05,2]
[406642500,1772017831359,-505.10566824,6.506e-05,2]
[406642501,1772017831370,-300.0,6.506e-05,2]
[406642502,1772017831381,-206.0,6.506e-05,2]
[406642503,1772017831390,-1621.85813356,6.507e-05,2]
[406642504,1772017831401,-2548.73865149,6.507e-05,2]
[406642505,1772017831411,-2015.80487419,6.507e-05,2]
[406642506,1772017831422,-1009.19356818,6.507e-05,2]
[406642507,1772017831433,-1034.84972454,6.507e-05,2]
[406642508,1772017831444,-563.90783571,6.507e-05,2]
[406642509,1772017831455,-5029.47916734,6.507e-05,2]
[406642510,1772017831466,-729.0,6.507e-05,2]
[406642511,1772017831499,-806.0,6.507e-05,2]
[406642512,1772017831511,-488770.687389,6.507e-05,2]
[406642513,1772017831521,-61717.82766656,6.507e-05,2]
[406642514,1772017831531,-613.73156102,6.507e-05,2]
[406642516,1772017831540,-80957.60329111,6.521e-05,2]
[406642519,1772017831551,-75012.38375099,6.521e-05,2]
[406642520,1772017831560,-5000.0,6.556e-05,2]
[406642521,1772017831569,-756.81818182,6.606e-05,2]
[406642522,1772017831578,-756.81818182,6.606e-05,2]
[406642523,1772017831588,-756.81818182,6.606e-05,2]
[406642524,1772017831597,-756.81818182,6.606e-05,2]
[406642525,1772017831607,-756.81818182,6.606e-05,2]
[406642526,1772017831617,-756.81818182,6.606e-05,2]
[406642527,1772017831627,-756.81818182,6.606e-05,2]
[406642528,1772017831636,-756.81818182,6.606e-05,2]
[406642529,1772017831646,-756.81818182,6.606e-05,2]
[406642530,1772017831656,-756.81818182,6.606e-05,2]
[406642531,1772017831667,-756.81818182,6.606e-05,2]
[406642532,1772017831680,-756.81818182,6.606e-05,2]
[406642533,1772017831690,-756.81818182,6.606e-05,2]
[406642534,1772017831700,-756.81818182,6.606e-05,2]
[406642535,1772017831711,-756.81818182,6.606e-05,2]
[406642536,1772017831720,-756.81818182,6.606e-05,2]
[406642537,1772017831729,-756.81818182,6.606e-05,2]
[406642538,1772017831738,-756.81818182,6.606e-05,2]
[406642539,1772017831747,-756.81818182,6.606e-05,2]
[406642540,1772017831756,-756.81818182,6.606e-05,2]
[406642541,1772017831766,-756.81818182,6.606e-05,2]
[406642542,1772017831775,-756.81818182,6.606e-05,2]
[406642543,1772017831784,-616.66666667,6.606e-05,2]
[406642544,1772017831792,-616.66666667,6.606e-05,2]
[406642545,1772017831801,-616.66666667,6.606e-05,2]
[406642546,1772017831812,-150.99,6.706e-05,2]
[406642547,1772017831822,-153.0,6.707e-05,2]
[406642548,1772017831831,-287.35399164,6.707e-05,2]
[406642549,1772017831841,-500.0,6.842e-05,2]
[406642550,1772017831850,-1600.0,6.852e-05,2]
[406642551,1772017831859,-1400.0,6.9e-05,2]
[406642552,1772017831868,-71350.10916488,6.907e-05,2]
[406642553,1772017831879,-496.00083512,6.907e-05,2]
[406642554,1772017831888,-339.81742965,6.961e-05,2]
[406642555,1772017831897,-387.27991964,6.962e-05,2]
[406642556,1772017831907,-2800.0,7e-05,2]
[406642557,1772017831916,-462.65,7.017e-05,2]
[406642558,1772017831925,-1413.47,7.081e-05,2]
[406642559,1772017831934,-420.0,7.156e-05,2]
[406642560,1772017831943,-255.0,7.156e-05,2]
[406642561,1772017831952,-1680.0,7.156e-05,2]
[406642562,1772017831961,-420.0,7.156e-05,2]
[406642563,1772017831970,-5000.0,7.157e-05,2]
[406642564,1772017831979,-193.0,7.157e-05,2]
[406642565,1772017831988,-250.0,7.158e-05,2]
[406642566,1772017831998,-5000.0,7.158e-05,2]
[406642567,1772017832007,-2482.0,7.205e-05,2]
[406642568,1772017832017,-1413.47,7.24e-05,2]
[406642569,1772017832027,-166.66,7.25e-05,2]
[406642570,1772017832039,-250.0,7.266e-05,2]
[406642571,1772017832048,-5000.0,7.266e-05,2]
[406642572,1772017832057,-194.0122658,7.266e-05,2]
[406642573,1772017832068,-5071.01,7.315e-05,2]
[406642574,1772017832078,-22950.16,7.364e-05,2]
[406642575,1772017832087,-180.308126,7.365e-05,2]
[406642576,1772017832097,-180.308126,7.365e-05,2]
[406642577,1772017832109,-180.308126,7.365e-05,2]
[406642578,1772017832118,-180.308126,7.365e-05,2]
[406642579,1772017832127,-1346.299617,7.365e-05,2]
[406642580,1772017832137,-1346.299617,7.365e-05,2]
[406642581,1772017832146,-1346.299617,7.365e-05,2]
[406642582,1772017832156,-1346.299617,7.365e-05,2]
[406642583,1772017832165,-34801.608187,7.366e-05,2]
[406642584,1772017832174,-354.7248669,7.376e-05,2]
[406642585,1772017832183,-5000.0,7.376e-05,2]
[406642586,1772017832194,-2879.34,7.39e-05,2]
[406642587,1772017832204,-1413.47,7.399e-05,2]
[406642588,1772017832214,-6937.0,7.41e-05,2]
[406642589,1772017832223,-789.23919305,7.41e-05,2]
[406642590,1772017832233,-156.91,7.429e-05,2]
[406642591,1772017832243,-250.0,7.483e-05,2]
[406642592,1772017832252,-1098.52918604,7.509e-05,2]
[406642593,1772017832263,-7765.2884082,7.554e-05,2]
[406642594,1772017832273,-1413.47,7.558e-05,2]
[406642595,1772017832283,-1600.0,7.614e-05,2]
[406642596,1772017832292,-166.66,7.803e-05,2]
[406642597,1772017832301,-1326.95458225,7.814e-05,2]
[406642598,1772017832311,-355.0,7.872e-05,2]
[406642599,1772017832321,-433.0,7.872e-05,2]
[406642600,1772017832330,-2351.0,7.872e-05,2]
[406642601,1772017832341,-309.0,7.872e-05,2]
[406642602,1772017832350,-236.91,7.993e-05,2]
[406642603,1772017832360,-1864.92716342,8e-05,2]
[406642604,1772017832369,-2000.0,8e-05,2]
[406642605,1772017832379,-748.30950424,8.036e-05,2]
[406642606,1772017832388,-389.16,8.061e-05,2]
[406642607,1772017832397,-462.474588,8.178e-05,2]
[406642608,1772017832407,-678.0,8.219e-05,2]
[406642609,1772017832416,-402.02148496,8.219e-05,2]
[406642610,1772017832429,-97.97851504,8.219e-05,2]
[406642611,1772017832438,-500.0,8.219e-05,2]
[406642612,1772017832448,-150.0,8.219e-05,2]
[406642613,1772017832457,-150.0,8.219e-05,2]
[406642614,1772017832466,-232.570922,8.219e-05,2]
[406642615,1772017832476,-123.86864973,8.219e-05,2]
[406642644,1772017837931,-166.84500227,8.219e-05,2]
[406642646,1772017837940,-500.0,8.219e-05,2]
[406642648,1772017837949,-425.41,8.219e-05,2]
[406642650,1772017837958,-3846.6,8.219e-05,2]
[406642652,1772017837968,-642.5940491,8.219e-05,2]
[406642658,1772017839735,-357.4059509,8.219e-05,2]
[406642659,1772017839744,-0.3997618,8.219e-05,2]
[406642664,1772017842666,-161.2402382,8.219e-05,2]
[406642665,1772017842676,-180.2997618,8.249e-05,2]
[406642666,1772017842732,-491.46888403,8.249e-05,2]
[406642667,1772017842742,-51.64994016,8.253e-05,2]
[406642677,1772017845296,-500.0,8.219e-05,2]
[406642678,1772017845306,-115.02005984,8.253e-05,2]
[406642679,1772017845316,-678.0,8.274e-05,2]
[406642680,1772017845326,-500.0,8.274e-05,2]
[406642681,1772017845336,-500.0,8.274e-05,2]
[406642682,1772017845346,-150.0,8.274e-05,2]
[406642683,1772017845356,-678.0,8.329e-05,2]
[406642684,1772017845366,-219.84961923,8.329e-05,2]
[406642685,1772017845376,-500.0,8.329e-05,2]
[406642686,1772017845385,-150.0,8.329e-05,2]
[406642687,1772017845395,-1600.0,8.375e-05,2]
[406642688,1772017845405,-139.13032096,8.383e-05,2]
[406642689,1772017845417,-538.86967904,8.383e-05,2]
[406642690,1772017845426,-500.0,8.383e-05,2]
[406642691,1772017845436,-229.08432386,8.383e-05,2]
[406642692,1772017845446,-678.0,8.438e-05,2]
[406642693,1772017845455,-500.0,8.438e-05,2]
[406642694,1772017845465,-678.0,8.493e-05,2]
[406642695,1772017845475,-500.0,8.493e-05,2]
[406642696,1772017845485,-500.0,8.493e-05,2]
[406642697,1772017845495,-678.0,8.548e-05,2]
[406642698,1772017845504,-500.0,8.548e-05,2]
[406642699,1772017845515,-678.0,8.603e-05,2]
[406642700,1772017845525,-500.0,8.603e-05,2]
[406642701,1772017845534,-678.0,8.657e-05,2]
[406642702,1772017845544,-500.0,8.657e-05,2]
[406642703,1772017845554,-648.0,8.659e-05,2]
[406642704,1772017845563,-3292.0,8.659e-05,2]
[406642705,1772017845573,-432.0,8.7e-05,2]
[406642706,1772017845582,-151.0,8.709e-05,2]
[406642707,1772017845591,-678.0,8.712e-05,2]
[406642708,1772017845601,-500.0,8.712e-05,2]
[406642709,1772017845611,-1238.62840921,8.763e-05,2]
[406642710,1772017845620,-678.0,8.767e-05,2]
[406642711,1772017845630,-500.0,8.767e-05,2]
[406642712,1772017845640,-500.0,8.767e-05,2]
[406642713,1772017845649,-678.0,8.822e-05,2]
[406642714,1772017845659,-500.0,8.822e-05,2]
[406642715,1772017845668,-678.0,8.877e-05,2]
[406642716,1772017845677,-500.0,8.877e-05,2]
[406642717,1772017845687,-678.0,8.931e-05,2]
[406642718,1772017845696,-387.0,8.931e-05,2]
[406642719,1772017845706,-166.67,8.934e-05,2]
[406642720,1772017845716,-678.0,8.986e-05,2]
[406642721,1772017845725,-2000.0,9e-05,2]
[406642722,1772017845739,-678.0,9.041e-05,2]